bitfinex/quotes_SOLUSD_20250210
["timestamp","ask_amount","ask_price","bid_price","bid_amount"]
[1739154747585,17.28133942,198.09,198.01,17.28133942]
[1739154747885,0.9468,198.08,198.01,17.28133942]
[1739154748282,17.28133942,198.07,197.99,17.28133942]
[1739154748506,17.28133942,198.03,197.95,17.28133942]
[1739154748799,17.28133942,198.05,197.97,17.28133942]
[1739154749491,17.28133942,198.03,197.95,17.28133942]
[1739154749682,17.28133942,198.03,197.93,17.28133942]
[1739154749683,0.94719218,198.02,197.93,17.28133942]
[1739154750006,0.94719218,198.02,197.94,0.12549]
[1739154750311,17.28133942,197.99,197.91,17.28133942]
[1739154750475,21.32203942,197.99,197.91,17.28133942]
[1739154750976,0.94727527,197.98,197.91,17.28133942]
[1739154751298,4.0403,198.01,197.95,17.28133942]
[1739154751479,0.94712558,198.0,197.93,17.28133942]
[1739154751808,4.0403,198.01,197.95,17.28133942]
[1739154752577,4.0403,198.01,197.85,17.28133942]
[1739154752578,20.0,197.94,197.85,17.28133942]
[1739154752781,17.28133942,197.87,197.79,17.28133942]
[1739154752987,17.28133942,197.87,197.72,1.24633641]
[1739154752988,17.28133942,197.83,197.75,17.34433942]
[1739154753302,17.28133942,197.81,197.75,0.063]
[1739154753476,17.28133942,197.79,197.75,0.063]
[1739154754401,0.9482317,197.78,197.75,0.063]
[1739154754593,21.32613942,197.79,197.75,0.063]
[1739154755204,17.28133942,197.77,197.75,0.063]
[1739154755400,14.36035317,197.76,197.75,0.063]
[1739154755597,1.0,197.72,197.63,27.97638128]
[1739154755786,27.97638128,197.71,197.61,27.97638128]
[1739154756480,27.97638128,197.69,197.61,27.97638128]
[1739154757105,27.97638128,197.75,197.67,27.97638128]
[1739154757304,29.64268128,197.77,197.69,27.97638128]
[1739154757603,1.6663,197.77,197.71,27.97638128]
[1739154757912,6.2109,197.78,197.61,32.46]
[1739154757913,1.565,197.84,197.75,27.97638128]
[1739154758079,1.565,197.84,197.7,28.22736128]
[1739154758080,1.565,197.84,197.8,27.97638128]
[1739154758282,34.61918128,197.91,197.82,27.97638128]
[1739154758578,34.61918128,197.91,197.84,27.97638128]
[1739154758775,29.54138128,197.93,197.86,27.97638128]
[1739154759397,20.0,197.92,197.86,27.97638128]
[1739154759591,1.565,197.93,197.86,27.97638128]
[1739154759995,30.48900378,197.93,197.86,27.97638128]
[1739154760201,34.53090378,197.93,197.86,27.97638128]
[1739154760581,1.565,197.93,197.88,27.97638128]
[1739154760782,28.92406644,197.97,197.88,27.97638128]
[1739154762212,27.97638128,197.95,197.86,27.97638128]
[1739154762407,27.97638128,197.93,197.86,27.97638128]
[1739154762793,27.97638128,197.93,197.84,27.97638128]
[1739154762994,32.01818128,197.93,197.84,27.97638128]
[1739154763805,32.01818128,197.93,197.88,0.063]
[1739154764309,27.97638128,197.93,197.88,0.063]
[1739154764484,27.97638128,197.95,197.88,28.03938128]
[1739154766302,27.97638128,197.93,197.88,0.063]
[1739154767016,32.96523198,197.95,197.88,0.063]
[1739154767212,32.01748128,197.97,197.89,27.97638128]
[1739154767422,27.97638128,197.96,197.88,28.03938128]
[1739154768123,4.0414,197.95,197.88,28.03938128]
[1739154768327,27.97638128,197.94,197.88,0.063]
[1739154768616,27.97638128,197.91,197.88,0.063]
[1739154768996,27.97638128,197.89,197.88,0.063]
[1739154770022,32.01898128,197.89,197.88,0.063]
[1739154770195,48.03110889,197.89,197.88,0.063]
[1739154771129,48.03110889,197.89,197.74,27.97638128]
[1739154771130,20.0,197.86,197.74,27.97638128]
[1739154771293,27.97638128,197.82,197.74,27.97638128]
[1739154772125,32.02038128,197.82,197.74,27.97638128]
[1739154772621,0.94814891,197.81,197.74,27.97638128]
[1739154772828,27.97638128,197.8,197.72,27.97638128]
[1739154773025,27.97638128,197.78,197.7,27.97638128]
[1739154773324,27.97638128,197.78,197.69,4.0466]
[1739154773325,27.97638128,197.81,197.74,0.12549]
[1739154773525,27.97638128,197.83,197.75,27.97638128]
[1739154773897,27.97638128,197.87,197.79,27.97638128]
[1739154774101,1.6525,197.89,197.83,27.97638128]
[1739154774297,1.6525,197.89,197.85,27.97638128]
[1739154774607,27.97638128,197.95,197.87,27.97638128]
[1739154774808,1.6525,197.96,197.89,27.97638128]
[1739154775420,1.6525,197.96,197.91,27.97638128]
[1739154775922,1.6525,197.96,197.89,27.97638128]
[1739154776300,1.6525,197.96,197.91,27.97638128]
[1739154776524,0.03,197.99,197.93,27.97638128]
[1739154776998,0.03,197.99,197.95,27.97638128]
[1739154777601,0.03,197.99,197.93,27.97638128]
[1739154777803,28.95360767,197.99,197.91,27.97638128]
[1739154778117,27.97638128,197.97,197.89,32.01888128]
[1739154779527,27.97638128,197.95,197.89,4.0425]
[1739154780240,27.97638128,197.95,197.89,27.97638128]
[1739154780532,0.03,197.99,197.93,27.97638128]
[1739154780832,0.03,197.99,197.92,27.97638128]
[1739154781036,28.00638128,197.99,197.92,27.97638128]
[1739154781730,27.97638128,197.95,197.87,32.01938128]
[1739154781937,27.97638128,197.92,197.87,4.043]
[1739154782236,4.0706,197.99,197.94,4.0416]
[1739154782237,0.03,197.99,197.94,4.0416]
[1739154782409,0.03,197.99,197.95,27.97638128]
[1739154783011,0.03,197.99,197.96,28.10187128]
[1739154783229,0.03,197.99,197.98,27.97638128]
[1739154783640,0.03,197.99,197.97,27.97638128]
[1739154783961,0.03,197.99,197.94,14.1456]
[1739154783962,0.03,197.99,197.98,28.22736128]
[1739154784514,0.03,197.99,197.98,32.26816128]
[1739154784917,0.03,197.99,197.98,32.01718128]
[1739154785116,0.03,197.99,197.96,32.01738128]
[1739154785324,0.03,197.99,197.98,27.97638128]
[1739154785930,0.03,197.99,197.96,27.97638128]
[1739154786129,0.03,197.99,197.97,20.0]
[1739154786642,0.03,197.99,197.94,27.97638128]
[1739154786818,27.97638128,197.97,197.89,27.97638128]
[1739154787619,0.97740388,197.99,197.95,27.97638128]
[1739154787620,0.03,197.99,197.95,27.97638128]
[1739154787842,0.03,197.99,197.97,27.97638128]
[1739154788313,0.03,197.99,197.98,28.10187128]
[1739154788515,0.03,197.99,197.98,32.26816128]
[1739154788713,0.03,197.99,197.98,32.14267128]
[1739154788919,17.28134,198.21,198.02,1.0]
[1739154789242,1.6418,198.3,198.2,27.97638128]
[1739154789440,7.51701766,198.25,198.22,27.97638128]
[1739154789831,7.51701766,198.25,198.24,27.97638128]
[1739154790442,7.51701766,198.25,198.22,27.97638128]
[1739154790640,8.46297,198.25,198.18,27.97638128]
[1739154791250,7.51701766,198.25,198.22,27.97638128]
[1739154792743,7.51701766,198.25,198.19,27.97638128]
[1739154792927,28.92235644,198.27,198.19,27.97638128]
[1739154793129,27.97638128,198.31,198.23,27.97638128]
[1739154793338,29.92215621,198.33,198.25,27.97638128]
[1739154793643,27.97638128,198.31,198.23,27.97638128]
[1739154793842,27.97638128,198.28,198.21,27.97638128]
[1739154794042,27.97638128,198.27,198.2,27.97638128]
[1739154794218,27.97638128,198.28,198.2,27.97638128]
[1739154794423,0.94602702,198.27,198.2,27.97638128]
[1739154795036,0.94601463,198.28,198.16,14.25529]
[1739154795230,0.25098,198.33,198.23,27.97638128]
[1739154795231,27.97638128,198.31,198.23,27.97638128]
[1739154795547,27.97638128,198.29,198.21,27.97638128]
[1739154795937,0.94596707,198.28,198.21,27.97638128]
[1739154796130,27.97638128,198.27,198.19,27.97638128]
[1739154796628,27.97638128,198.25,198.17,27.97638128]
[1739154796950,0.94612717,198.24,198.17,27.97638128]
[1739154797943,0.94612717,198.24,198.17,32.01318128]
[1739154798146,27.97638128,198.25,198.17,32.01318128]
[1739154798651,27.97638128,198.24,198.17,32.01318128]
[1739154799026,0.94611377,198.23,198.16,27.97638128]
[1739154799226,27.97638128,198.22,198.16,27.97638128]
[1739154799952,27.97638128,198.22,198.16,32.01338128]
[1739154800335,1.6418,198.25,198.2,27.97638128]
[1739154800539,1.6418,198.25,198.19,27.97638128]
[1739154801350,29.61818128,198.25,198.18,27.97638128]
[1739154802147,29.61818128,198.25,198.19,4.0365]
[1739154802452,1.6418,198.25,198.19,32.01288128]
[1739154802755,1.6418,198.25,198.2,27.97638128]
[1739154803264,35.75808128,198.31,198.24,27.97638128]
[1739154803434,7.7817,198.31,198.25,27.97638128]
[1739154804641,7.7817,198.31,198.22,27.97638128]
[1739154804642,27.97638128,198.29,198.22,27.97638128]
[1739154804854,11.8157,198.31,198.2,28.03938128]
[1739154804855,27.97638128,198.27,198.2,28.03938128]
[1739154805053,11.8157,198.31,198.26,27.97638128]
[1739154805054,0.03,198.31,198.26,27.97638128]
[1739154805358,0.03,198.31,198.22,0.75646865]
[1739154805565,0.03,198.31,198.24,20.0]
[1739154806059,0.03,198.31,198.28,27.97638128]
[1739154806474,0.03,198.31,198.29,27.97638128]
[1739154806760,0.03,198.31,198.28,27.97638128]
[1739154807151,0.03,198.31,198.26,27.97638128]
[1739154807458,0.03,198.31,198.29,27.97638128]
[1739154807765,0.03,198.31,198.3,27.97638128]
[1739154808061,27.97638128,198.36,198.29,27.97638128]
[1739154808452,27.97638128,198.41,198.34,27.97638128]
[1739154808644,27.97638128,198.42,198.34,27.97638128]
[1739154808843,27.97638128,198.41,198.34,27.97638128]
[1739154809458,4.49281075,198.46,198.32,4.0338]
[1739154809459,27.97638128,198.47,198.39,27.97638128]
[1739154809765,27.97638128,198.45,198.38,27.97638128]
[1739154809961,27.97638128,198.45,198.37,27.97638128]
[1739154810146,27.97638128,198.45,198.38,27.97638128]
[1739154810349,27.97638128,198.44,198.37,27.97638128]
[1739154810542,27.97638128,198.45,198.38,27.97638128]
[1739154810740,27.97638128,198.47,198.39,27.97638128]
[1739154811062,27.97638128,198.47,198.4,27.97638128]
[1739154811445,27.97638128,198.5,198.43,27.97638128]
[1739154811651,4.0301,198.51,198.41,27.97638128]
[1739154811652,27.97638128,198.48,198.41,27.97638128]
[1739154811843,18.44194853,198.51,198.38,27.97638128]
[1739154811844,27.97638128,198.45,198.38,27.97638128]
[1739154812045,15.1051,198.51,198.34,4.0332]
[1739154812261,20.0,198.48,198.34,4.0332]
[1739154812461,24.0307,198.48,198.34,4.0332]
[1739154812667,1.0,198.46,198.32,4.0337]
[1739154812862,13.41184853,198.47,198.32,4.0337]
[1739154813071,27.97638128,198.42,198.34,27.97638128]
[1739154813251,35.1072,198.48,198.34,27.97638128]
[1739154813252,27.97638128,198.41,198.34,27.97638128]
[1739154813563,27.97638128,198.38,198.31,6.2702]
[1739154813765,27.97638128,198.4,198.32,27.97638128]
[1739154814065,27.97638128,198.42,198.35,27.97638128]
[1739154814279,35.1072,198.48,198.36,27.97638128]
[1739154814280,27.97638128,198.44,198.36,27.97638128]
[1739154814463,27.97638128,198.48,198.41,27.97638128]
[1739154814660,27.97638128,198.49,198.42,27.97638128]
[1739154814856,27.97638128,198.48,198.41,27.97638128]
[1739154815259,27.97638128,198.46,198.38,27.97638128]
[1739154815566,27.97638128,198.44,198.37,27.97638128]
[1739154815764,27.97638128,198.44,198.36,27.97638128]
[1739154815966,27.97638128,198.43,198.35,27.97638128]
[1739154816155,27.97638128,198.4,198.33,27.97638128]
[1739154816659,27.97638128,198.42,198.35,27.97638128]
[1739154817058,27.97638128,198.42,198.34,27.97638128]
[1739154817566,14.1085,198.46,198.31,10.3042]
[1739154817567,27.97638128,198.44,198.36,27.97638128]
[1739154817775,28.00638128,198.44,198.36,27.97638128]
[1739154818070,27.97638128,198.39,198.35,0.063]
[1739154818373,27.97638128,198.37,198.35,0.063]
[1739154820552,4.033,198.36,198.35,0.063]
[1739154821274,17.44484853,198.36,198.35,0.063]
[1739154822048,4.033,198.36,198.35,0.063]
[1739154822748,17.44484853,198.36,198.35,0.063]
[1739154823575,18.44484853,198.36,198.35,0.063]
[1739154823773,19.68311444,198.36,198.35,0.063]
[1739154823972,19.68311444,198.36,198.35,0.0001]
[1739154824475,20.93409444,198.36,198.35,0.0001]
[1739154824683,17.44484853,198.36,198.35,0.0001]
[1739154825981,4.033,198.36,198.35,0.0001]
[1739154827065,52.00938128,198.36,198.35,0.0001]
[1739154827269,52.00938128,198.36,198.24,27.97638128]
[1739154827270,20.0,198.33,198.24,27.97638128]
[1739154827466,27.97638128,198.31,198.24,27.97638128]
[1739154827765,20.0,198.33,198.2,28.03938128]
[1739154827766,27.97638128,198.29,198.2,28.03938128]
[1739154827972,33.41184853,198.33,198.24,27.97638128]
[1739154827973,4.0346,198.28,198.24,27.97638128]
[1739154828280,38.06178128,198.31,198.24,27.97638128]
[1739154828460,4.0344,198.3,198.24,27.97638128]
[1739154828659,27.97638128,198.27,198.2,0.063]
[1739154828864,27.97638128,198.25,198.2,0.063]
[1739154829368,1.5363,198.28,198.2,28.03938128]
[1739154829369,27.97638128,198.27,198.2,28.03938128]
[1739154829559,29.51268128,198.28,198.2,28.03938128]
[1739154829756,23.2714158,198.26,198.2,0.063]
[1739154829979,4.0355,198.24,198.2,0.063]
[1739154830755,32.01158128,198.26,198.2,0.063]
[1739154830954,4.0352,198.26,198.2,0.063]
[1739154831367,4.0344,198.3,198.24,27.97638128]
[1739154831963,32.01038128,198.32,198.25,27.97638128]
[1739154832162,28.00638128,198.36,198.29,27.97638128]
[1739154832366,4.0334,198.35,198.3,27.97638128]
[1739154833083,0.03,198.36,198.3,27.97638128]
[1739154833283,0.03,198.36,198.35,27.97638128]
[1739154834078,0.03,198.36,198.35,32.00958128]
[1739154834278,0.03,198.36,198.35,32.26056128]
[1739154834485,0.03,198.44,198.39,0.25098]
[1739154834659,0.03,198.44,198.43,27.97638128]
[1739154836082,0.03,198.44,198.41,27.97638128]
[1739154836293,0.03,198.44,198.39,27.97638128]
[1739154836659,0.03,198.44,198.37,27.97638128]
[1739154836660,28.00638128,198.44,198.37,27.97638128]
[1739154837264,28.00638128,198.44,198.36,27.97638128]
[1739154837985,32.03778128,198.44,198.36,27.97638128]
[1739154838486,28.00638128,198.44,198.36,27.97638128]
[1739154838689,0.03,198.44,198.38,27.97638128]
[1739154840077,28.00638128,198.44,198.36,27.97638128]
[1739154840903,0.03,198.44,198.37,27.97638128]
[1739154841700,27.97638128,198.41,198.34,27.97638128]
[1739154841863,27.97638128,198.41,198.33,27.97638128]
[1739154842065,27.97638128,198.39,198.31,27.97638128]
[1739154842278,27.97638128,198.37,198.35,0.063]
[1739154843768,29.55838128,198.39,198.35,0.063]
[1739154843971,27.97638128,198.38,198.35,0.063]
[1739154844396,1.25706925,198.43,198.35,0.063]
[1739154844397,28.00638128,198.44,198.36,27.97638128]
[1739154844696,0.03,198.44,198.39,27.97638128]
[1739154845375,0.03,198.44,198.35,0.063]
[1739154845376,0.03,198.44,198.41,27.97638128]
[1739154846277,0.03,198.44,198.43,32.00798128]
[1739154846476,0.03,198.44,198.43,27.97638128]
[1739154848974,0.03,198.44,198.41,27.97638128]
[1739154849175,0.03,198.44,198.39,27.97638128]
[1739154850374,0.03,198.44,198.35,0.063]
[1739154850582,27.97638128,198.43,198.35,28.03938128]
[1739154850788,27.97638128,198.43,198.35,32.07258128]
[1739154851876,27.97638128,198.43,198.35,28.03938128]
[1739154851877,32.00808128,198.43,198.35,28.03938128]
[1739154852380,32.00808128,198.43,198.35,0.063]
[1739154852381,27.97638128,198.41,198.35,0.063]
[1739154852588,27.97638128,198.39,198.35,0.063]
[1739154852976,27.97638128,198.41,198.35,0.063]
[1739154853273,0.03,198.44,198.38,27.97638128]
[1739154854781,0.03,198.44,198.36,27.97638128]
[1739154854782,27.97638128,198.43,198.36,27.97638128]
[1739154854982,27.97638128,198.43,198.35,0.063]
[1739154855604,27.97638128,198.43,198.36,27.97638128]
[1739154855776,27.97638128,198.43,198.35,0.063]
[1739154856797,27.97638128,198.4,198.35,0.063]
[1739154857374,4.0318,198.42,198.35,0.063]
[1739154857375,27.97638128,198.38,198.35,0.063]
[1739154857798,27.97638128,198.4,198.35,0.063]
[1739154858387,27.97638128,198.38,198.35,0.063]
[1739154858793,32.00918128,198.38,198.35,0.063]
[1739154859178,27.97638128,198.4,198.35,0.063]
[1739154859400,4.032,198.41,198.35,0.063]
[1739154859585,27.97638128,198.4,198.35,0.063]
[1739154860196,27.97638128,198.38,198.35,0.063]
[1739154860573,27.97638128,198.36,198.35,0.063]
[1739154860774,32.00938128,198.36,198.35,0.063]
[1739154861303,27.97638128,198.36,198.35,0.063]
[1739154861605,32.00908128,198.38,198.35,0.063]
[1739154861794,27.97638128,198.38,198.35,0.063]
[1739154863404,32.00918128,198.38,198.35,0.063]
[1739154863703,17.10363207,198.36,198.35,0.063]
[1739154865390,21.13663207,198.36,198.35,0.063]
[1739154865601,34.5484806,198.36,198.35,0.063]
[1739154867909,34.5484806,198.36,198.2,6.473]
[1739154867910,20.0,198.32,198.2,23.57663207]
[1739154868073,17.10363207,198.27,198.2,23.57663207]
[1739154868274,17.10363207,198.24,198.2,0.063]
[1739154868516,17.10363207,198.23,198.2,0.063]
[1739154868891,17.10363207,198.22,198.2,0.063]
[1739154869403,17.10363207,198.21,198.2,0.063]
[1739154869704,30.5154806,198.21,198.2,0.063]
[1739154869912,34.5515806,198.21,198.2,0.063]
[1739154870481,61.74551267,198.21,198.16,0.063]
[1739154870681,17.10363207,198.17,198.16,0.063]
[1739154870881,27.53824853,198.21,198.16,0.063]
[1739154870882,17.10363207,198.18,198.16,0.063]
[1739154871492,17.10363207,198.17,198.16,0.063]
[1739154871719,41.26157684,198.17,198.16,0.063]
[1739154872018,45.29847684,198.17,198.16,0.063]
[1739154872981,31.88662831,198.17,198.16,0.063]
[1739154873514,27.84972831,198.17,198.16,0.063]
[1739154874506,41.26157684,198.17,198.16,0.063]
[1739154875119,42.88557684,198.17,198.16,0.063]
[1739154875414,44.13655684,198.17,198.16,0.063]
[1739154875623,46.42416684,198.16,198.15,0.063]
[1739154875918,45.29867684,198.16,198.15,0.063]
[1739154877290,27.84972831,198.16,198.15,0.063]
[1739154877604,27.84972831,198.17,198.15,0.063]
[1739154877820,41.26157684,198.16,198.15,0.063]
[1739154878028,27.84972831,198.16,198.15,0.063]
[1739154878919,27.84972831,198.18,198.15,0.063]
[1739154879106,0.03,198.21,198.16,27.84972831]
[1739154879311,0.03,198.21,198.17,27.84972831]
[1739154879522,0.03,198.21,198.2,27.84972831]
[1739154880730,0.03,198.21,198.16,27.84972831]
[1739154881328,0.03,198.21,198.17,27.84972831]
[1739154881503,0.03,198.21,198.18,27.84972831]
[1739154881706,0.03,198.21,198.17,27.84972831]
[1739154881899,0.03,198.21,198.15,4.1003]
[1739154881900,0.03,198.21,198.15,27.91272831]
[1739154882106,27.84972831,198.19,198.15,0.063]
[1739154882821,31.88632831,198.19,198.15,0.063]
[1739154883401,27.84972831,198.17,198.15,0.063]
[1739154883932,27.84972831,198.16,198.15,0.063]
[1739154884305,4.0366,198.19,198.15,0.063]
[1739154884832,0.03,198.21,198.17,27.84972831]
[1739154885014,0.03,198.21,198.2,27.84972831]
[1739154888131,0.03,198.21,198.18,27.84972831]
[1739154889062,0.03,198.21,198.16,27.84972831]
[1739154889224,0.03,198.21,198.15,0.063]
[1739154889429,27.84972831,198.2,198.15,0.063]
[1739154890126,4.0365,198.19,198.15,0.063]
[1739154891022,4.0365,198.19,198.16,0.063]
[1739154892617,0.03,198.21,198.16,27.91272831]
[1739154893728,4.0661,198.21,198.16,0.063]
[1739154894426,0.03,198.21,198.16,0.063]
[1739154895433,0.03,198.21,198.16,27.91272831]
[1739154895636,0.03,198.21,198.18,27.84972831]
[1739154896653,0.03,198.21,198.16,0.063]
[1739154898327,4.0661,198.21,198.16,0.063]
[1739154900049,17.1267818,198.2,198.16,0.063]
[1739154900239,17.1267818,198.18,198.16,0.063]
[1739154900444,17.1267818,198.17,198.16,0.063]
[1739154901760,21.1636818,198.17,198.16,0.063]
[1739154902853,4.0369,198.17,198.16,0.063]
[1739154904130,10.1203,198.21,198.16,0.063]
[1739154904131,0.03,198.21,198.16,0.063]
[1739154904336,0.03,198.21,198.17,17.1267818]
[1739154904554,4.0661,198.21,198.16,0.063]
[1739154905133,21.1928818,198.21,198.16,0.063]
[1739154905431,17.1267818,198.18,198.16,0.063]
[1739154906069,17.44874853,198.17,198.16,0.063]
[1739154906253,38.39761033,198.17,198.16,0.0001]
[1739154906451,45.05261033,198.17,198.16,0.0001]
[1739154906835,20.0,198.12,198.0,17.1897818]
[1739154907035,17.1267818,198.06,198.0,0.063]
[1739154907257,17.1267818,198.03,198.0,0.063]
[1739154907464,17.1267818,198.02,198.0,0.063]
[1739154907972,17.1267818,198.01,198.0,0.063]
[1739154908275,21.1668818,198.01,198.0,0.063]
[1739154909062,1.5711,198.06,198.0,0.063]
[1739154909251,21.1657818,198.07,198.0,0.063]
[1739154909640,17.1267818,198.05,198.0,0.063]
[1739154910241,18.6978818,198.11,198.04,17.1267818]
[1739154910460,17.1267818,198.13,198.05,17.1267818]
[1739154911582,17.1267818,198.11,198.03,17.1267818]
[1739154911863,17.1267818,198.06,198.0,0.063]
[1739154912244,17.1267818,198.08,198.0,0.063]
[1739154912449,17.1267818,198.11,198.03,17.1267818]
[1739154913358,21.1646818,198.12,198.04,17.1267818]
[1739154914368,17.1267818,198.07,198.02,0.063]
[1739154914567,13.41184853,198.11,198.02,0.063]
[1739154914568,17.1267818,198.04,198.02,0.063]
[1739154915768,21.1664818,198.03,198.02,0.063]
[1739154916142,34.57833033,198.03,198.02,0.063]
[1739154917342,34.70382033,198.03,198.02,0.063]
[1739154917873,18.57743853,198.01,198.0,0.063]
[1739154918172,52.83100213,198.01,198.0,0.063]
[1739154918369,0.12549,197.99,197.98,0.063]
[1739154918572,30.66412033,197.99,197.98,0.063]
[1739154918869,30.78961033,197.99,197.98,0.063]
[1739154919044,30.66412033,197.99,197.98,0.063]
[1739154919966,34.70472033,197.99,197.98,0.063]
[1739154920160,34.83021033,197.99,197.98,0.0001]
[1739154920477,36.83021033,197.99,197.98,0.0001]
[1739154920669,38.09854683,197.99,197.98,0.0001]
[1739154921069,37.09854683,197.99,197.98,0.0001]
[1739154921277,35.97305683,197.99,197.98,0.0001]
[1739154921593,38.09854683,197.99,197.98,0.0001]
[1739154921758,20.0,197.97,197.96,0.063]
[1739154922063,17.1267818,197.89,197.88,0.063]
[1739154922761,17.1267818,197.93,197.88,0.063]
[1739154922963,37.1267818,197.93,197.88,0.063]
[1739154923379,1.5353,197.96,197.88,0.063]
[1739154923549,17.1267818,197.98,197.92,17.1267818]
[1739154923751,1.5353,198.01,197.88,6.1622]
[1739154923752,4.0402,198.01,197.94,17.1267818]
[1739154924175,17.1267818,198.02,197.94,17.1267818]
[1739154924572,17.1267818,198.06,197.98,17.1267818]
[1739154924748,17.1267818,198.08,198.0,17.1267818]
[1739154924953,20.0,198.05,197.98,17.1267818]
[1739154926072,0.03,198.04,197.98,17.1267818]
[1739154926771,17.1267818,198.02,197.94,17.1267818]
[1739154926948,0.03,198.04,197.92,17.1267818]
[1739154926949,17.1267818,198.0,197.92,17.1267818]
[1739154928061,17.1567818,198.04,197.96,17.1267818]
[1739154928255,17.1567818,198.04,197.98,17.1267818]
[1739154928256,0.03,198.04,197.98,17.1267818]
[1739154928662,17.1267818,198.03,197.95,17.1267818]
[1739154928856,17.1267818,198.01,197.95,17.1267818]
[1739154929073,17.1267818,198.01,197.93,17.1267818]
[1739154929387,17.1267818,197.99,197.91,17.1267818]
[1739154929676,17.1267818,197.97,197.89,17.1267818]
[1739154929867,13.41184853,198.0,197.85,1.5019]
[1739154929868,17.1267818,197.95,197.87,17.1267818]
[1739154930074,17.1267818,197.93,197.85,18.6286818]
[1739154930254,17.1267818,197.93,197.88,0.063]
[1739154931590,17.1267818,197.91,197.88,0.063]
[1739154931888,4.0424,197.9,197.88,0.063]
[1739154932883,17.1267818,197.91,197.88,0.063]
[1739154933178,4.0421,197.92,197.88,0.063]
[1739154935056,17.1267818,197.91,197.88,0.063]
[1739154935967,37.1267818,197.89,197.88,0.063]
[1739154936173,17.1267818,197.93,197.88,0.063]
[1739154936861,4.0421,197.92,197.88,0.063]
[1739154937063,17.1267818,197.91,197.88,0.063]
[1739154937277,17.1267818,197.9,197.88,0.063]
[1739154938388,4.0426,197.89,197.88,0.063]
[1739154938773,41.1693818,197.89,197.88,0.063]
[1739154940263,24.0426,197.89,197.88,0.063]
[1739154940465,41.1693818,197.89,197.88,0.063]
[1739154940977,54.58123033,197.89,197.88,0.063]
[1739154943987,13.41184853,197.84,197.8,0.063]
[1739154944165,17.1267818,197.81,197.8,0.063]
[1739154944485,30.53863033,197.81,197.8,0.063]
[1739154945494,30.78961033,197.81,197.8,0.063]
[1739154945674,30.78961033,197.81,197.68,0.063]
[1739154945675,20.0,197.77,197.68,0.063]
[1739154945993,30.53863033,197.76,197.68,0.063]
[1739154946675,31.78961033,197.76,197.68,0.063]
[1739154947267,26.95961939,197.76,197.68,0.063]
[1739154947589,25.95961939,197.76,197.68,0.063]
[1739154947761,16.34209086,197.76,197.68,0.063]
[1739154947964,16.34119086,197.8,197.73,12.29679086]
[1739154948171,12.29679086,197.76,197.69,12.29679086]
[1739154948376,12.29679086,197.76,197.68,0.063]
[1739154949194,12.54777086,197.76,197.68,0.063]
[1739154949880,12.54777086,197.76,197.68,12.35979086]
[1739154949881,16.34209086,197.76,197.68,12.35979086]
[1739154950080,16.34209086,197.76,197.69,12.29679086]
[1739154950278,29.75393939,197.76,197.68,12.35979086]
[1739154950476,29.75393939,197.76,197.68,0.063]
[1739154951477,29.75393939,197.76,197.69,12.29679086]
[1739154952085,12.29679086,197.77,197.7,12.29679086]
[1739154952282,4.0446,197.79,197.74,12.29679086]
[1739154952485,20.0,197.78,197.73,12.29679086]
[1739154952803,20.0,197.78,197.72,12.29679086]
[1739154953470,24.0449,197.78,197.72,12.29679086]
[1739154954171,20.0,197.78,197.72,12.29679086]
[1739154954701,12.29679086,197.76,197.68,12.35979086]
[1739154954998,12.29679086,197.76,197.68,0.063]
[1739154955392,16.34209086,197.76,197.68,0.063]
[1739154955602,29.75393939,197.76,197.68,0.063]
[1739154958184,16.34209086,197.76,197.68,12.35979086]
[1739154958383,12.29679086,197.78,197.7,12.29679086]
[1739154958586,20.0,197.76,197.7,12.29679086]
[1739154959294,20.0,197.77,197.7,12.29679086]
[1739154959600,4.0453,197.76,197.7,12.29679086]
[1739154960098,29.75393939,197.76,197.68,0.063]
[1739154960484,16.34209086,197.76,197.68,0.063]
[1739154960987,29.75393939,197.76,197.68,0.063]
[1739154961191,20.0,197.72,197.68,0.063]
[1739154961381,16.34349086,197.69,197.68,0.063]